Cogmind - Beta 14 @@@ ROGUE MODE // 2024.09.07 @ 19:47:05 Player: ILikeVoltron Result: Self-destructed Performance ------------- Evolutions (2) 1000 Regions Visited (4) 800 Robots Destroyed (21) 105 Value Destroyed (554) 554 Prototype IDs (1) 20 Alien Tech Used (0) 0 Bonus (0) 0 TOTAL SCORE: 2479 Bonus ------- None Cogmind --------- Core Integrity 453/550 Matter 291/300 Energy 100/100 System Corruption 1% Temperature Cool (9) Movement Walking (260) Ox2 Location -8/Materials Parts ------- > --- POWER (1) -------- (None) > --- PROPULSION (3) --- Aluminum Leg > --- UTILITY (4) ------ Improved Heat Sink Medium Storage Unit Visual Processing Unit Hardened Medium Armor Plating > --- WEAPON (3) ------- Advanced Beam Cannon Improved Light Cannon > --- INVENTORY (10) --- Light Treads Light Treads Large Storage Unit Compact Matter Pod (65) Sensor Array Spread Laser Spread Laser Improved Light Cannon EMP Blaster Maul Peak State ------------ > --- POWER ------------ Light Ion Engine > --- PROPULSION ------- Aluminum Leg Aluminum Leg Improved Aluminum Leg > --- UTILITY ---------- Improved Heat Sink Medium Storage Unit Visual Processing Unit Improved Weapon Shielding > --- WEAPON ----------- Advanced Beam Cannon Improved Light Cannon EMP Blaster > --- INVENTORY -------- Light Treads Light Treads Large Storage Unit Compact Matter Pod Sensor Array Spread Laser Spread Laser Improved Light Cannon EMP Blaster Maul [Rating: 22] Favorites ----------- Power Ion Engine Engine Ion Engine Propulsion Aluminum Leg Leg Aluminum Leg Utility Visual Processing Unit Device Improved Heat Sink Storage Small Storage Unit Processor Visual Processing Unit Protection Improved Weapon Shielding Weapon Improved Light Cannon Energy Cannon Advanced Beam Cannon Ballistic Gun Light Assault Rifle Ballistic Cannon Improved Light Cannon Launcher EMP Blaster Impact Weapon Maul Build | -11 -10 -10 -9 -8 ------- Run | Yrd Mat Min Mat Mat Slots Evolved 4 | . . . 2 2 Power . | . . . . . Propulsion 1 | . . . 1 . Utility 2 | . . . 1 1 Weapon 1 | . . . . 1 Parts Attached 22 | . 9 . 5 8 Power 2 | . 1 . . 1 Engine 2 | . 1 . . 1 Core . | . . . . . Reactor . | . . . . . Propulsion 7 | . 4 . 2 1 Treads . | . . . . . Leg 7 | . 4 . 2 1 Wheel . | . . . . . Hover . | . . . . . Flight . | . . . . . Utility 8 | . 2 . 2 4 Device 4 | . 1 . 1 2 Storage 1 | . . . 1 . Processor 1 | . 1 . . . Hackware . | . . . . . Protection 2 | . . . . 2 Artifact . | . . . . . Weapon 5 | . 2 . 1 2 Energy Gun . | . . . . . Energy Cannon 1 | . . . . 1 Ballistic Gun . | . . . . . Ballistic Cannon 2 | . 2 . . . Launcher 1 | . . . . 1 Special Weapon . | . . . . . Impact Weapon 1 | . . . 1 . Slashing Weapon . | . . . . . Piercing Weapon . | . . . . . Special Melee Weapon . | . . . . . Unidentified Prototypes 1 | . . . . 1 Parts Lost 6 | . . . . 6 Power 2 | . . . . 2 Propulsion 2 | . . . . 2 Utility 1 | . . . . 1 Weapon 1 | . . . . 1 Highest Loss Streak 3 | . . . . 3 To Critical Strikes . | . . . . . Average Slot Usage (%) 98 | . 97 100 100 94 Engine 11 | . 13 14 11 6 Leg 28 | . 28 28 33 25 Device 6 | . 5 . 11 13 Storage 12 | . 14 14 11 9 Processor 9 | . 6 14 11 9 Energy Cannon 1 | . . . . 9 Ballistic Gun 5 | . 14 . . . Ballistic Cannon 17 | . 12 28 20 9 Launcher 1 | . . . . 8 Peak Build Rating 22 | 6 11 11 16 22 Average Rating 13 | 6 9 11 14 20 On Entrance 10 | 6 6 11 11 16 Naked Turns . | . . . . . Heaviest Build 31 | 12 18 18 24 31 Greatest Support 33 | 20 20 20 33 33 Greatest Overweight (x) 1 | . . . . 1 Average Overweight (x) . | . . . . . Largest Inventory Capacity 10 | 8 8 8 10 10 Average Capacity 8 | 8 8 8 9 10 Most Carried 10 | 6 8 8 10 10 Average Carried 8 | 6 7 8 8 9 Final Capacity 10 | 8 8 8 10 10 Final Carried 10 | 6 8 8 10 10 Class Distribution -------------------- 60% | Mutant 22% | Scavenger-Mutant 11% | Skirmisher 5% | Tank Dominant Class ---------------- Mutant | -10/Materials Mutant | -10/Mines Scavenger-Mutant | -9/Materials Skirmisher | -8/Materials Resources | -11 -10 -10 -9 -8 ----------- Run | Yrd Mat Min Mat Mat Matter Collected 1069 | 183 182 171 49 484 Remotely . | . . . . . Salvage Created 677 | . 194 84 46 353 Parts 32 | . 18 7 2 5 Haulers Intercepted 1 | . . . 1 . Recyclers Shooed 2 | . . . . 2 Parts Field Recycled . | . . . . . Retrieved Matter . | . . . . . Parts Self-Destructed . | . . . . . Prevented . | . . . . . Kills | -11 -10 -10 -9 -8 ------- Run | Yrd Mat Min Mat Mat Combat Hostiles Destroyed 14 | . 4 5 . 5 Guns 4 | . 4 . . . Cannons 9 | . . 5 . 4 Classes Destroyed 7 | . 4 1 1 1 Worker 3 | . 1 2 . . Hauler 1 | . . . 1 . Recycler 1 | . . . . 1 Operator 1 | . 1 . . . Watcher 1 | . 1 . . . Swarmer 3 | . . 3 . . Grunt 11 | . 4 2 . 5 Best Kill Streak 4 | . 3 2 1 4 Combat Bots Only 3 | . 3 2 . 2 Max Kills in Single Turn 1 | . 1 1 1 1 Gunslinging . | . . . . . Exploded . | . . . . . Melee . | . . . . . Uniques/NPCs Destroyed . | . . . . . Combat | -11 -10 -10 -9 -8 -------- Run | Yrd Mat Min Mat Mat Hostile Shots Fired 124 | . 32 20 . 72 Missed 25 | . 6 3 . 16 Damage Taken 1380 | . 343 157 . 880 Core 167 | . 41 29 . 97 Absorbed by Shields . | . . . . . Redirected to Shielding 49 | . . . . 49 Core Remaining (%) 90 | 100 . 72 100 . Volleys Fired 125 | . 56 19 23 27 Largest 3 | . 2 2 2 3 Hottest 140 | . 78 78 78 140 Shots Fired 248 | . 112 38 46 52 Gun 90 | . 90 . . . Cannon 157 | . 22 38 46 51 Launcher 1 | . . . . 1 Special . | . . . . . Kinetic 223 | . 112 38 46 27 Thermal 24 | . . . . 24 Explosive . | . . . . . Electromagnetic 1 | . . . . 1 Robot Hit Streak 15 | . 15 6 1 11 Robot Miss Streak 5 | . 3 5 1 5 Penetration Max . | . . . . . Secondary Targets 1 | . 1 . . . Max Gunslinging Chain 1 | . 1 . . . Shots Hit Robots 120 | . 66 22 1 31 Core Hits 43 | . 19 8 1 15 Critical Kills 1 | . . . . 1 Critical Parts Destroyed . | . . . . . Critical Strikes 5 | . 1 1 . 3 Meltdown 1 | . . . . 1 Blast 4 | . 1 1 . 2 Melee Attacks 3 | . . . 3 . Impact 3 | . . . 3 . Slashing . | . . . . . Piercing . | . . . . . Sneak Attacks . | . . . . . Combat Hostiles . | . . . . . Follow-up Attacks . | . . . . . Damage Inflicted 1818 | . 560 478 24 756 Guns 472 | . 472 . . . Cannons 1241 | . 88 478 24 651 Explosions 94 | . . . . 94 Melee . | . . . . . Ramming 11 | . . . . 11 Kinetic 1465 | . 560 478 24 403 Thermal 248 | . . . . 248 Explosive . | . . . . . Electromagnetic 94 | . . . . 94 Impact . | . . . . . Slashing . | . . . . . Piercing . | . . . . . Highest Corruption 1 | . . . . 1 Average Corruption 1 | . . . . 1 Corruption Purged . | . . . . . Corruption Blocked . | . . . . . Overload Shots . | . . . . . Overflow Damage 4 | . . 4 . . Projectiles 4 | . . 4 . . Explosions . | . . . . . Melee . | . . . . . Knockbacks 16 | . 2 6 . 8 Impact . | . . . . . Kinetic 14 | . 2 5 . 7 Secondary 2 | . . 1 . 1 Self-Inflicted Damage 20 | . . . . 20 Shots 1 | . . . . 1 Rammed . | . . . . . Targets Rammed 1 | . . . . 1 Kicked 1 | . . . . 1 Crushed . | . . . . . Highest Temperature 153 | . 104 153 . 49 Average Temperature 41 | . 41 54 . 10 Received Heat Transfer 840 | . 255 63 . 522 Siege Activations . | . . . . . Robots Corrupted . | . . . . . Combat Hostiles . | . . . . . Parts Fried . | . . . . . Impact Corruptions . | . . . . . Robots Melted 1 | . . . . 1 Combat Hostiles 1 | . . . . 1 Parts Melted 2 | . . . . 2 Heat Transferred 444 | . . . . 444 Parts Sabotaged . | . . . . . Parts Stolen . | . . . . . Parts Stripped . | . . . . . Power Chain Reactions . | . . . . . Alert | -11 -10 -10 -9 -8 ------- Run | Yrd Mat Min Mat Mat Peak Influence 201 | . 191 164 85 201 Initial 63 | . . 16 63 35 Average 99 | . 104 107 73 116 Maximum Alert Level 1 | . . . . 1 Low Security (%) 98 | 100 100 100 100 91 Level 1 1 | . . . . 8 Level 2 . | . . . . . Level 3 . | . . . . . Level 4 . | . . . . . Level 5 . | . . . . . High Security . | . . . . . Max Security . | . . . . . Squads Dispatched 4 | . 1 . . 3 Investigation 2 | . . . . 2 Extermination . | . . . . . Reinforcement 2 | . 1 . . 1 Assault . | . . . . . Garrison . | . . . . . Intercept . | . . . . . Searches Triggered . | . . . . . Construction Impeded . | . . . . . Haulers Reinforced . | . . . . . Active Scanning Responses . | . . . . . Cargo Convoy Interrupts . | . . . . . Stealth | -11 -10 -10 -9 -8 --------- Run | Yrd Mat Min Mat Mat Distress Signals 3 | . 1 . . 2 Communications Jammed . | . . . . . Distress Signals . | . . . . . Times Spotted 37 | . 13 6 . 18 Peak Tracking Total 10 | . 3 3 . 10 Tactical Retreats 4 | . 1 1 . 2 Traps | -11 -10 -10 -9 -8 ------- Run | Yrd Mat Min Mat Mat Traps Triggered 2 | . 1 . . 1 Indirectly . | . . . . . Trap Hack Attempts . | . . . . . Triggered . | . . . . . Disarmed . | . . . . . Reprogrammed . | . . . . . Reused . | . . . . . Traps Extracted . | . . . . . Installed . | . . . . . Triggered . | . . . . . Machines | -11 -10 -10 -9 -8 ---------- Run | Yrd Mat Min Mat Mat Machines Disabled . | . . . . . Max in Single Turn . | . . . . . Machines Repaired . | . . . . . Machines Dismantled . | . . . . . Machines Sabotaged . | . . . . . Overloaded Fab Kills . | . . . . . Hacking | -11 -10 -10 -9 -8 --------- Run | Yrd Mat Min Mat Mat Machines Accessed 2 | . . . 1 1 Terminals 2 | . . . 1 1 Fabricators . | . . . . . Repair Stations . | . . . . . Recycling Units . | . . . . . Scanalyzers . | . . . . . Garrison Access . | . . . . . Total Hacks 4 | . . . 2 2 Successful 2 | . . . 2 . Failed 2 | . . . . 2 Catastrophic 2 | . . . . 2 Database Lockouts . | . . . . . Manual . | . . . . . Terminals 4 | . . . 2 2 Fabricators . | . . . . . Repair Stations . | . . . . . Recycling Units . | . . . . . Scanalyzers . | . . . . . Garrison Access . | . . . . . Terminal Hacks 2 | . . . 2 . Alert Level 1 | . . . 1 . Zone Layout 1 | . . . 1 . Fabricator Hacks . | . . . . . Repair Station Hacks . | . . . . . Recycling Unit Hacks . | . . . . . Scanalyzer . | . . . . . Garrison Access Hacks . | . . . . . Unauthorized Hacks . | . . . . . Terminals . | . . . . . Fabricators . | . . . . . Repair Stations . | . . . . . Recycling Units . | . . . . . Scanalyzers . | . . . . . Garrison Access . | . . . . . Data Cores Recovered . | . . . . . Used . | . . . . . Hacking Detections 2 | . . . 1 1 Full Trace Events 1 | . . . . 1 Feedback Events . | . . . . . Feedback Blocked . | . . . . . Robot Schematics Acquired . | . . . . . Robots Built . | . . . . . Authchips . | . . . . . Time . | . . . . . Total Robot Build Rating . | . . . . . Part Schematics Acquired . | . . . . . Parts Built . | . . . . . Authchips . | . . . . . Time . | . . . . . Total Part Build Rating . | . . . . . Parts Repaired . | . . . . . Time . | . . . . . Parts Recycled . | . . . . . Recycled Matter . | . . . . . Retrieved Matter . | . . . . . Retrieved Components . | . . . . . Parts Scanalyzed . | . . . . . Part Schematics Acquired . | . . . . . Parts Damaged . | . . . . . Bothacking | -11 -10 -10 -9 -8 ------------ Run | Yrd Mat Min Mat Mat Used RIF Installer . | . . . . . Robots Hacked . | . . . . . Non-combat . | . . . . . Combat . | . . . . . Robot Hacks Applied . | . . . . . Relay Couplers Released . | . . . . . Fabnet Peak Effective % . | . . . . . Robots Rewired . | . . . . . Allies Hacked . | . . . . . Hacks Repelled . | . . . . . Allies | -11 -10 -10 -9 -8 -------- Run | Yrd Mat Min Mat Mat Total Allies . | . . . . . Largest Group . | . . . . . Highest-Rated Group . | . . . . . Highest-Rated Ally . | . . . . . Total Orders . | . . . . . Ally Attacks . | . . . . . Total Damage . | . . . . . Kills . | . . . . . Allies Corrupted . | . . . . . Allies Melted . | . . . . . Intel | -11 -10 -10 -9 -8 ------- Run | Yrd Mat Min Mat Mat Robot Analysis Total . | . . . . . Derelict Logs Recovered . | . . . . . Drone Launches . | . . . . . Drone Recoveries . | . . . . . Exploration | -11 -10 -10 -9 -8 ------------- Run | Yrd Mat Min Mat Mat Turns Passed 1320 | 1 456 310 316 237 Spaces Moved 725 | 1 211 211 188 114 Core . | . . . . . Treads . | . . . . . Legs 725 | 1 211 211 188 114 Wheels . | . . . . . Hover . | . . . . . Flight . | . . . . . Fastest Speed 120 | 120 120 120 120 120 Average Speed 120 | 120 120 120 120 125 Slowest Speed 190 | 120 120 120 120 190 Overloaded Moves . | . . . . . Propulsion Burnouts . | . . . . . Robots Hopped . | . . . . . Cave-ins Triggered . | . . . . . Exploration Rate (%) 25 | 2 38 49 25 15 Regions Visited 4 Branch Regions 1 Pre-discovered Areas . | . . . . . Known Exits Taken . | . . . . . Unknown Exits Taken 4 | 1 1 1 1 . Scrap Searched . | . . . . . Spaces Dug 13 | . . . 13 . Terrain Destroyed 19 | . 1 4 14 . Melee 3 | . . . 3 . Projectile 16 | . 1 4 11 . AOE . | . . . . . Terrain Rammed . | . . . . . Walls Destroyed . | . . . . . Machines Disabled . | . . . . . Actions | -11 -10 -10 -9 -8 --------- Run | Yrd Mat Min Mat Mat Total 935 | 1 319 230 228 157 Wait 38 | 1 36 1 . . Move 721 | . 210 210 187 114 Hop . | . . . . . Pick Up 11 | . 2 . 6 3 Fast Attach 8 | . 6 . . 2 Attach 5 | . . . 2 3 Detach 1 | . . . . 1 Swap 9 | . 3 . 3 3 Drop 13 | . 6 . 4 3 Fire 125 | . 56 19 23 27 Melee 3 | . . . 3 . Ram . | . . . . . Kick 1 | . . . . 1 Crush . | . . . . . Escape Stasis . | . . . . . Rewire . | . . . . . Trap . | . . . . . Miscellaneous . | . . . . . Route ------- -11/Scrapyard -10/Materials (discovered 2 exits: *Mat / [*Min]) -10/Mines (discovered 2 exits: *Mat x2) -9/Materials -8/Materials History --------- Turn | Location | Event 2 | -11/Scrapyard | Discovered new exit (range 0) 2 | -11/Scrapyard | Entered Materials 311 | -10/Materials | Build established: Mutant 374 | -10/Materials | Discovered new exit (range 14) 380 | -10/Materials | Discovered new exit (range 18) 458 | -10/Materials | Entered Mines 528 | -10/Mines | Discovered new exit (range 10) 748 | -10/Mines | Discovered new exit (range 12) 768 | -10/Mines | Entered Materials 768 | -9/Materials | Evolved 2 slots: Propulsion x1, Utility x1 1039 | -9/Materials | Discovered new exit (range 8) 1084 | -9/Materials | Entered another Materials area 1084 | -8/Materials | Evolved 2 slots: Utility x1, Weapon x1 1321 | -8/Materials | Self-destructed Last Messages --------------- 01271_ K-01 Serf collects debris. 01280_ W-25 Informer sends out distress signal. 01286_ K-01 Serf collects debris. 01292_ Penetrated by Slug. 01292_ Aluminum Leg destroyed. 01295_ Acquired Hrd. Medium Armor Plating. 01295_ Penetrated by Slug. 01298_ H-55 Commando knocked back. 01302_ Penetrated by Slug. 01303_ M-13 Machinist repairs Imp. Heat Sink. 01305_ M-13 Machinist repairs Aluminum Leg. 01309_ Slug penetrates Wall. 01310_ EMP Blaster destroyed. 01314_ Triggered Alarm Trap. 01314_ An alarm sounds. 01314_ ALERT: Alarm triggered, dispatching investigation squad. 01316_ Kicked G-47 Trooper out of the way. 01318_ K-01 Serf collects debris. 01320_ Critical hit (Burn: +37). 01321_ Imp. Aluminum Leg destroyed. Map ----- +----------------------------------------------------+ | ?????????????????????????????????????????????????? | | ?????????????????????????????????????????????????? | | ?????????????????????????????????????????????????? | | ?????????????????????????????????????????????????? | | ?????????????????????????????????????????????????? | | ?????????????????????????????????????????????????? | | ?????????????????????????????????????????????????? | | ?????????????????????????????????????????????????? | | ???????????????????????????###???????????????????? | | ?????????????????????????? ???????????????????? | | ?????????????????????????? ????? ???????????? | | ?????????????????????????? ????? ???????????? | | ?????????????????????????? ????? ???????????? | | ?????????????????????????? ????# #??????????? | | ?????????????????????????? ????# #??????????? | | ?????????????????????????? ????# #??????????? | | ??????????????????????????? ????# #??????????? | | ??????????????????????????? % ????# #??????????? | | ???????????????????????????#/#????# #??????????? | | ???????????????????????????#%#????# #??????????? | | ???????????????????????????#/###### #??????????? | | ????????????????????????#### # #??????????? | | ????????????????????????# g+ """ # #??????????? | | ????????????????????????#g## """ # #??????????? | | ????????????????????????# ## """ # #??????????? | | ????????????????????????#@## # #??????????? | | ????????????????????????# ## # #??????????? | | ????????????????????????# #####/### #####??????? | | ????????????????????????#g ######## | | ???????????????? + % + | | ??????????????????""" # % ###### | | ????????????????????????# ###+######### #????# | | ????????????????????????# # #????# #????# | | ????????????????????????# k#] #????# #????# " | | ????????????????????????# # % #????# #????# " | | ????????????????????????# # ###### ###### " | | ????????????????????????# # / + | | ????????????????????????? # / #### # | | ????????????????????????+ ########??# ### | | ????????????????????????? #?????????# | | ????????????????????????? #??######## | | ????????????????????????? #### ## | | ????????????????????????? | | ????????????????????????? | | ????????????????????????? ? | | ?????????????????????????????### ############ | | ???????????????????????????????## ##########??# | | ????????????????????????????????# # #??# | | ????????????????????????????????# # "" #??# | | ????????????????????????????????# + T" #??# | +----------------------------------------------------+ Best States ------------- Heat Dissipation 45 Energy Generation 10 Energy Capacity 250 Matter Stores 300 Matter Capacity 300 Sight Range 18 Robot Scan Range 14 Terrain Scan Density 10 Armor Coverage 225 Weapon Shielding 66 Evasion (%) 55 Item Schematics ----------------- None Robot Schematics ------------------ None Fabricated ------------ Nothing Alien Tech Used ----------------- None Achievements -------------- None Challenges ------------ None Game ------ Seed IonTimingHumpback Manual? 0 Play Time 00:15:08 Cumulative 163.5 hours Start 2024.09.07 @ 16:57:02 End 2024.09.07 @ 19:47:05 Sessions 3 Manual Loads 0 Difficulty Rogue Special Mode None Game No. 298 Rogue 294 Adventurer 0 Explorer 4 Win Type - Total 0 Types 0/0/0/0/0/0/0/0/0 Lore% 20 Gallery% 46 Achievement% 34 Wizard Run 0 Options --------- Layout 1 ASCII 0 Keyboard 1 Movement Arrows Keybinds 0 Fullscreen 1 Font 32/SmallcapsGlow Map View 130x35 Zoom Use 0% Tactical HUD 1 Map Filters NONE Filters NONE Steam 0 RUN: 1ab79fe7-6d47-496d-89cf-a469713d557c